bitfinex/quotes_ETHUSD_20250123
["timestamp","ask_amount","ask_price","bid_price","bid_amount"]
[1737652660760,3.08202,3244.7,3244.5,1.3484]
[1737652660911,3.08175,3244.9,3244.5,1.3484]
[1737652661417,3.08193,3244.8,3244.6,35.0]
[1737652662056,3.08194,3244.7,3244.6,35.0]
[1737652663133,3.08186,3244.8,3244.6,35.0]
[1737652663345,3.08175,3244.9,3244.6,35.0]
[1737652663518,3.08194,3244.7,3244.6,35.0]
[1737652663714,3.08175,3244.9,3244.6,35.0]
[1737652664015,3.08194,3244.7,3244.6,35.0]
[1737652665519,3.08233,3244.3,3243.8,2.9831]
[1737652665965,3.5007942,3245.1,3243.8,2.9831]
[1737652665966,3.08156,3245.1,3244.0,3.08259]
[1737652666166,3.08181,3244.9,3244.0,3.08259]
[1737652666462,3.08181,3244.9,3244.3,0.55]
[1737652666661,3.08181,3244.9,3244.3,1.044455]
[1737652666814,3.08187,3244.8,3244.5,35.0]
[1737652667028,3.08189,3244.8,3244.5,35.0]
[1737652667220,3.08181,3244.9,3244.5,35.0]
[1737652667930,3.08176,3244.9,3244.5,35.0]
[1737652668160,3.08176,3244.9,3244.5,38.10202562]
[1737652668549,3.08191,3244.8,3244.5,3.10202562]
[1737652668753,3.08176,3244.9,3244.3,1.044455]
[1737652669125,3.08176,3244.9,3244.8,35.0]
[1737652669419,3.08159,3245.1,3244.8,35.0]
[1737652669645,3.08141,3245.3,3244.5,0.55]
[1737652669831,3.08141,3245.3,3244.7,1.3745]
[1737652670039,3.08141,3245.3,3245.0,35.0]
[1737652670451,3.08149,3245.2,3245.0,35.0]
[1737652670837,3.08141,3245.3,3245.0,35.0]
[1737652671039,3.08121,3245.5,3245.0,35.0]
[1737652671040,3.08121,3245.5,3245.1,0.55]
[1737652671363,3.0,3245.6,3245.1,0.55]
[1737652671669,3.0,3245.6,3245.3,0.55]
[1737652671823,3.0,3245.6,3245.4,0.7543]
[1737652672452,3.08118,3245.5,3244.8,0.445654]
[1737652672774,3.08135,3245.4,3244.9,0.7543]
[1737652673120,6.5007942,3246.2,3245.3,35.0]
[1737652673121,3.08102,3245.7,3245.3,35.0]
[1737652673420,3.08105,3245.7,3245.3,35.0]
[1737652673625,3.08105,3245.7,3245.4,3.10202562]
[1737652674466,6.84529,3246.3,3245.5,0.797]
[1737652674467,3.08068,3246.1,3245.5,0.797]
[1737652674852,6.16095,3246.3,3245.5,3.87812]
[1737652675053,3.08068,3246.1,3245.5,0.797]
[1737652675253,3.08079,3246.0,3245.6,35.0]
[1737652675566,3.08079,3246.0,3245.7,3.10202562]
[1737652675927,4.2751942,3246.6,3245.5,0.797]
[1737652676127,3.08118,3245.6,3244.9,0.7608]
[1737652676559,3.08091,3245.8,3244.9,3.84255]
[1737652676731,3.08101,3245.7,3245.6,35.0]
[1737652677067,3.08066,3246.1,3245.6,35.0]
[1737652677363,3.0809,3245.8,3245.7,3.10202562]
[1737652677664,3.08084,3245.9,3245.6,35.0]
[1737652677665,3.08099,3245.7,3245.6,35.0]
[1737652678535,3.08084,3245.9,3245.6,35.0]
[1737652678730,3.08094,3245.8,3245.6,35.0]
[1737652680577,0.7521,3246.4,3245.6,35.0]
[1737652680775,3.08088,3245.9,3245.0,3.08157]
[1737652681071,0.7521,3246.4,3245.1,0.384237]
[1737652681232,3.0807,3246.1,3245.7,35.0]
[1737652681428,3.08073,3246.0,3245.7,35.0]
[1737652682293,3.08082,3245.9,3245.7,35.0]
[1737652682595,3.0809,3245.8,3245.7,35.0]
[1737652682801,3.08082,3245.9,3245.7,35.0]
[1737652682949,3.08065,3246.1,3245.7,35.0]
[1737652683149,3.08065,3246.1,3245.7,38.10202562]
[1737652683378,3.08087,3245.9,3245.7,35.0]
[1737652683587,6.16176,3245.9,3245.7,35.0]
[1737652683754,3.0809,3245.8,3245.7,35.0]
[1737652683963,3.08077,3246.0,3245.7,35.0]
[1737652684382,3.08086,3245.9,3245.7,35.0]
[1737652685300,3.0809,3245.8,3245.7,35.0]
[1737652686391,7.005147,3245.8,3245.7,35.0]
[1737652686593,7.784747,3245.8,3245.7,35.0]
[1737652687303,6.8605,3245.8,3245.7,35.0]
[1737652688600,6.0809,3245.8,3245.7,35.0]
[1737652691588,3.08077,3246.0,3245.7,35.0]
[1737652691993,3.08063,3246.1,3245.7,35.0]
[1737652692187,3.08087,3245.9,3245.7,35.0]
[1737652692417,3.08087,3245.9,3245.7,38.10202562]
[1737652692615,6.16175,3245.9,3245.7,38.10202562]
[1737652692938,3.0809,3245.8,3245.7,35.0]
[1737652693601,6.0809,3245.8,3245.7,35.0]
[1737652693799,3.08137,3245.3,3245.2,0.586]
[1737652694321,3.08137,3245.3,3245.2,35.586]
[1737652694893,3.08137,3245.3,3245.2,35.0]
[1737652699844,3.89757,3245.3,3245.2,35.0]
[1737652700207,7.903576,3245.3,3245.2,35.0]
[1737652701004,3.0823,3244.4,3244.1,0.585]
[1737652701197,3.08242,3244.2,3244.1,0.585]
[1737652701417,3.08242,3244.2,3244.1,35.585]
[1737652701799,3.0823,3244.4,3244.1,35.585]
[1737652702029,3.08173,3245.0,3244.2,3.10202562]
[1737652702225,3.08185,3244.8,3244.2,6.18439562]
[1737652702429,3.08185,3244.8,3244.2,6.18444562]
[1737652702645,3.08211,3244.6,3244.2,3.10202562]
[1737652703002,3.08226,3244.4,3244.2,3.10202562]
[1737652703346,3.0821,3244.6,3244.3,3.10202562]
[1737652703916,3.08177,3244.9,3244.1,0.585]
[1737652704114,3.08177,3244.9,3244.8,35.0]
[1737652704473,3.0,3245.4,3244.8,35.0]
[1737652704474,3.0815,3245.2,3244.8,35.7861]
[1737652704616,3.08167,3245.0,3244.4,1.3361]
[1737652705149,3.08151,3245.2,3244.4,1.3361]
[1737652705150,3.08151,3245.2,3244.9,35.0]
[1737652705496,3.08166,3245.0,3244.9,35.0]
[1737652707941,3.08166,3245.0,3244.0,2.218]
[1737652707942,3.0822,3244.5,3244.0,3.0124]
[1737652708280,6.16442,3244.5,3244.0,3.0124]
[1737652708446,6.16442,3244.5,3244.1,35.0]
[1737652708746,6.16442,3244.5,3244.2,3.10202562]
[1737652708945,3.08198,3244.7,3244.2,3.10202562]
[1737652709148,3.08198,3244.7,3244.0,3.0124]
[1737652709335,6.16401,3244.7,3244.3,35.0]
[1737652709557,3.08198,3244.7,3244.3,35.0]
[1737652709916,6.16423,3244.6,3244.3,35.0]
[1737652710259,3.08223,3244.4,3244.3,35.0]
[1737652711466,3.08223,3244.4,3244.3,38.10202562]
[1737652711631,3.08223,3244.4,3244.3,35.0]
[1737652714030,3.84553,3244.4,3244.3,35.0]
[1737652714432,6.84553,3244.4,3244.3,35.0]
[1737652714971,3.08308,3243.5,3243.4,0.7733]
[1737652715267,3.08308,3243.5,3243.4,35.0]
[1737652715476,3.08308,3243.5,3243.4,38.10202562]
[1737652715626,3.08308,3243.5,3243.4,35.0]
[1737652716849,3.08375,3242.8,3242.7,2.218]
[1737652718049,6.08375,3242.8,3242.7,2.218]
[1737652718250,6.08375,3242.8,3242.7,37.218]
[1737652718449,6.08375,3242.8,3242.4,1.66042675]
[1737652718450,3.91464,3242.5,3242.4,1.66042675]
[1737652718796,4.914497,3242.5,3242.4,1.66042675]
[1737652719078,4.914497,3242.5,3242.4,35.0]
[1737652719451,3.08499,3241.5,3241.3,1.2809987]
[1737652719643,3.08508,3241.4,3241.3,1.2809987]
[1737652719858,3.08508,3241.4,3241.3,36.2809987]
[1737652720542,3.08476,3241.8,3241.3,36.2809987]
[1737652720543,0.8171,3241.9,3241.3,36.2809987]
[1737652720748,3.08444,3242.1,3241.4,3.85666]
[1737652720974,3.08453,3242.0,3241.4,0.7716]
[1737652721137,3.08444,3242.1,3241.4,3.85668]
[1737652721335,3.08402,3242.6,3241.4,0.7716]
[1737652721537,3.08402,3242.6,3241.9,3.08459]
[1737652721848,3.08419,3242.4,3241.8,3.08469]
[1737652722274,3.08419,3242.4,3242.3,35.0]
[1737652722483,3.0,3242.7,3242.3,35.0]
[1737652722641,3.0,3242.9,3241.6,0.7943]
[1737652722972,3.0845,3242.1,3241.6,0.7943]
[1737652723402,3.08434,3242.2,3241.6,0.7943]
[1737652723709,3.08445,3242.1,3241.6,0.7943]
[1737652724168,3.08445,3242.1,3242.0,35.0]
[1737652724499,3.08424,3242.3,3242.0,35.0]
[1737652724500,3.08434,3242.2,3242.0,35.0]
[1737652724699,3.08442,3242.1,3241.6,0.7943]
[1737652724864,3.08424,3242.3,3241.7,0.387921]
[1737652725059,3.08424,3242.3,3242.2,35.0]
[1737652728993,3.08407,3242.5,3242.2,35.0]
[1737652729198,3.08415,3242.4,3242.2,35.0]
[1737652729400,3.08406,3242.5,3242.3,0.8329]
[1737652729604,3.08406,3242.5,3242.2,35.0]
[1737652730073,3.08406,3242.5,3242.2,36.29578025]
[1737652730496,3.08414,3242.4,3242.2,36.29578025]
[1737652730809,3.08414,3242.4,3242.2,35.0]
[1737652731022,3.08406,3242.5,3242.2,35.0]
[1737652731884,3.08423,3242.3,3242.2,35.0]
[1737652732532,3.08482,3241.7,3241.1,1.4149]
[1737652732698,3.08465,3241.9,3241.3,3.08516]
[1737652732896,3.08424,3242.3,3241.5,35.8026]
[1737652733200,3.08387,3242.7,3241.9,3.08452]
[1737652733403,3.08387,3242.7,3242.1,3.08432]
[1737652734124,3.08387,3242.7,3242.2,35.0]
[1737652734789,3.08406,3242.5,3242.2,35.0]
[1737652735189,3.08406,3242.5,3242.2,38.10202562]
[1737652735626,3.08395,3242.6,3242.2,38.10202562]
[1737652737186,3.08416,3242.4,3242.2,38.10202562]
[1737652737392,3.08416,3242.4,3242.2,35.0]
[1737652737818,3.08423,3242.3,3242.2,35.0]
[1737652738125,3.08398,3242.6,3242.2,35.0]
[1737652738287,3.08412,3242.5,3242.2,35.0]
[1737652738944,0.8174,3243.2,3242.2,35.0]
[1737652739142,6.16745,3242.9,3242.3,3.10202562]
[1737652739315,3.08371,3242.9,3242.2,3.08431]
[1737652739518,6.16746,3242.9,3242.7,35.0]
[1737652739754,3.08375,3242.8,3242.7,35.0]
[1737652740133,3.08362,3243.0,3242.7,35.0]
[1737652740459,3.08332,3243.3,3242.7,35.0]
[1737652740657,3.08351,3243.1,3242.8,3.10202562]
[1737652740967,0.7718,3243.6,3242.7,35.0]
[1737652741168,6.1645,3244.4,3243.2,3.89975]
[1737652741316,3.08279,3243.9,3243.2,3.89975]
[1737652741671,3.08279,3243.9,3243.2,3.8997]
[1737652741956,3.08279,3243.9,3243.3,38.08319]
[1737652742173,3.08233,3244.3,3243.4,3.10202562]
[1737652742318,3.08242,3244.2,3243.6,3.08298]
[1737652742517,3.08242,3244.2,3243.5,3.08307]
[1737652742755,3.08253,3244.1,3243.4,3.08312]
[1737652742958,3.08253,3244.1,3243.3,0.582]
[1737652743257,3.08237,3244.3,3243.5,3.08306]
[1737652743466,3.08257,3244.1,3243.6,0.308306]
[1737652743767,3.08257,3244.1,3243.5,3.08307]
[1737652744739,3.08312,3243.5,3243.2,0.8164]
[1737652744929,3.08298,3243.7,3243.2,0.8164]
[1737652745332,3.0827,3243.9,3243.2,3.89969]
[1737652745775,3.0827,3243.9,3243.3,3.08325]
[1737652745994,3.0828,3243.8,3243.3,3.08325]
[1737652746289,3.0828,3243.8,3243.2,0.8164]
[1737652746447,0.69873,3243.8,3243.2,3.08337]
[1737652746875,3.08271,3243.9,3243.1,3.08339]
[1737652747204,3.08271,3243.9,3243.3,3.08324]
[1737652747788,3.08283,3243.8,3243.1,6.16679]
[1737652747971,3.08271,3243.9,3243.2,3.08332]
[1737652748288,3.08284,3243.8,3243.2,3.08333]
[1737652748459,3.08291,3243.7,3243.1,6.16678]
[1737652748788,3.08291,3243.7,3243.1,3.08339]
[1737652749093,3.781535,3243.8,3243.2,3.08331]
[1737652749291,3.0829,3243.7,3243.2,3.08335]
[1737652749451,3.08314,3243.5,3242.9,4.42164]
[1737652749649,3.08314,3243.5,3242.9,0.582]
[1737652749992,3.08314,3243.5,3242.9,3.66562]
[1737652750376,0.3781635,3243.6,3243.0,3.08355]
[1737652750572,0.698735,3243.8,3243.3,3.08327]
[1737652750573,3.0,3243.8,3243.3,3.08327]
[1737652750889,0.8218,3244.0,3243.5,3.08304]
[1737652751094,0.15425451,3244.9,3243.2,0.7663]
[1737652751095,0.7998,3244.6,3243.2,0.7663]
[1737652751294,0.7689,3244.3,3243.2,3.84959]
[1737652751594,3.85185,3243.7,3243.1,3.08346]
[1737652751766,3.85185,3243.7,3241.9,3.0846]
[1737652751767,0.7689,3243.7,3242.7,3.08377]
[1737652751965,3.468248,3243.6,3243.0,3.08355]
[1737652752163,3.08321,3243.4,3242.9,3.08364]
[1737652752364,6.551328,3243.6,3242.9,3.08364]
[1737652752685,3.468248,3243.6,3242.9,3.08364]
[1737652752990,3.468248,3243.6,3243.0,3.08355]
[1737652753179,3.08307,3243.6,3243.0,3.08355]
[1737652753552,3.08307,3243.6,3243.1,3.08345]
[1737652753847,0.7689,3243.7,3243.2,3.08332]
[1737652754008,3.08273,3243.9,3243.2,6.9247]
[1737652754208,3.776067,3243.9,3243.2,3.84138]
[1737652754455,3.776067,3243.9,3243.2,6.92466]
[1737652754946,3.08282,3243.8,3243.2,3.84138]
[1737652755146,3.08301,3243.6,3242.9,3.90554]
[1737652755311,3.08301,3243.6,3243.0,3.08352]
[1737652755511,3.08301,3243.6,3242.9,3.90554]
[1737652755512,3.08282,3243.8,3243.2,3.08336]
[1737652755711,3.08272,3243.9,3243.3,3.0832]
[1737652755958,0.768,3244.0,3242.9,0.8219]
[1737652756246,3.8538,3244.5,3243.9,3.08267]
[1737652756454,3.08248,3244.2,3243.5,3.08302]
[1737652756619,3.775855,3244.4,3243.5,3.08302]
[1737652756817,3.0825,3244.2,3243.7,3.08289]
[1737652757032,3.0825,3244.2,3243.5,3.08302]
[1737652757222,3.0826,3244.1,3243.5,3.08302]
[1737652757408,0.61651,3244.0,3243.4,0.7576]
[1737652757646,3.08266,3244.0,3243.4,3.08317]
[1737652757953,3.08266,3244.0,3243.5,3.08308]
[1737652759007,3.08266,3244.0,3243.2,3.08334]
[1737652759236,6.16577,3243.8,3243.2,3.08334]
[1737652759440,3.08288,3243.8,3243.3,3.08325]
[1737652759770,0.7572,3243.9,3243.2,3.08334]
[1737652759909,3.49490328,3244.4,3243.6,3.08292]
[1737652759910,0.7977,3244.2,3243.6,3.08292]
[1737652760115,3.0,3244.3,3243.8,3.08273]
[1737652760713,0.7977,3244.5,3243.8,3.08273]
[1737652760909,0.7977,3244.5,3243.7,0.793]
[1737652761141,3.87984,3244.5,3243.9,3.08262]
[1737652761341,4.576033,3244.5,3243.9,3.08262]
[1737652761536,3.08231,3244.4,3243.7,3.87582]
[1737652761777,3.08247,3244.2,3243.6,3.08294]
[1737652762282,0.7621,3244.0,3243.6,3.08299]
[1737652762639,3.84474,3244.0,3243.4,3.08314]
[1737652762839,3.0827,3243.9,3243.4,3.08314]
[1737652763447,3.0827,3243.9,3243.1,0.793]
[1737652763448,3.08284,3243.8,3243.1,0.793]
[1737652763662,3.0829,3243.7,3243.2,3.08329]
[1737652763887,3.08284,3243.8,3243.2,3.08329]
[1737652764462,3.08284,3243.8,3243.3,3.08326]
[1737652765069,0.7621,3244.0,3243.3,3.08326]
[1737652765275,3.0,3243.9,3243.4,3.08313]
[1737652765620,3.0828,3243.8,3243.2,3.08331]
[1737652765787,3.0828,3243.8,3243.3,3.08327]
[1737652765968,3.0828,3243.8,3243.1,3.87641]
[1737652766174,3.08293,3243.7,3243.1,3.87641]
[1737652766904,3.08293,3243.7,3242.4,0.60640241]
[1737652766905,0.8219,3243.0,3242.4,0.60640241]
[1737652767092,0.8219,3243.0,3242.5,3.08396]
[1737652767498,3.0833,3243.3,3242.7,3.08383]
[1737652767891,0.7852,3243.4,3242.6,3.08389]
[1737652768195,3.8684,3243.4,3242.8,3.0837]
[1737652768400,1.480351,3243.4,3242.6,3.08389]
[1737652768628,3.86843,3243.4,3242.6,6.16776]
[1737652768791,3.08333,3243.3,3242.6,3.08387]
[1737652768992,3.08333,3243.3,3242.7,0.55]
[1737652769199,3.08303,3243.6,3242.8,3.08367]
[1737652769397,3.08313,3243.5,3243.0,3.0835]
[1737652770234,3.86489,3243.7,3243.0,1.249867]
[1737652770438,3.8388,3244.0,3243.4,3.08318]
[1737652770892,3.08276,3243.9,3243.4,3.08318]
[1737652771308,3.08276,3243.9,3243.2,3.08328]
[1737652771507,3.8388,3244.0,3243.4,3.08318]
[1737652772037,0.7929,3244.3,3243.5,3.88212]
[1737652772203,3.08271,3243.9,3243.5,1.49563]
[1737652772388,3.08271,3243.9,3243.5,0.7991]
[1737652772835,3.08253,3244.1,3243.5,3.88218]
[1737652773029,3.08263,3244.0,3243.5,0.7991]
[1737652773601,3.08278,3243.9,3243.5,0.7991]
[1737652774506,6.16556,3243.9,3243.5,0.7991]
[1737652774715,3.08278,3243.9,3243.5,0.7991]
[1737652775037,3.08278,3243.9,3243.4,3.0831]
[1737652775233,3.08278,3243.9,3243.2,0.7679]
[1737652775234,3.08314,3243.5,3243.2,0.7679]
[1737652775434,3.08321,3243.4,3242.8,3.08367]
[1737652775624,3.08314,3243.5,3242.9,3.08365]
[1737652776022,3.08314,3243.5,3243.0,3.0835]
[1737652776243,3.08314,3243.5,3243.1,0.36335]
[1737652776439,3.08282,3243.8,3243.3,3.08326]
[1737652776749,3.08299,3243.6,3242.9,4.41273]
[1737652776936,3.08326,3243.4,3242.9,0.7791]
[1737652777324,6.16653,3243.4,3242.9,0.7791]
[1737652777529,3.08329,3243.3,3242.9,0.7791]
[1737652777924,0.8265,3243.5,3242.9,0.7791]
[1737652778217,3.08306,3243.6,3243.1,3.08346]
[1737652778926,3.91556,3243.8,3243.2,3.08328]
[1737652779342,3.91552,3243.8,3243.0,3.63351]
[1737652779656,3.08305,3243.6,3243.0,3.08355]
[1737652779876,3.08305,3243.6,3242.9,3.86271]
[1737652779877,3.08315,3243.5,3242.9,3.86271]
[1737652780418,3.08315,3243.5,3243.0,3.08355]
[1737652780719,3.0832,3243.4,3242.9,0.7791]
[1737652780920,3.0832,3243.4,3242.8,3.08369]
[1737652781229,3.08302,3243.6,3242.9,3.08357]
[1737652781817,3.08332,3243.3,3242.8,0.55]
[1737652782561,3.08332,3243.3,3242.8,3.63375]
[1737652783261,3.08314,3243.5,3242.9,3.08364]
[1737652783555,3.08322,3243.4,3242.9,3.08364]
[1737652783797,3.08319,3243.4,3242.9,3.08364]
[1737652784702,3.08299,3243.6,3242.9,3.08364]
[1737652784703,3.08299,3243.6,3243.0,3.08351]
[1737652784997,3.08299,3243.6,3243.1,3.08344]
[1737652785875,0.8098,3244.0,3243.0,0.7791]
[1737652786092,3.08295,3243.7,3243.2,3.08335]
[1737652786709,3.08308,3243.6,3243.0,3.86265]
[1737652786874,3.08308,3243.6,3243.0,3.8626]
[1737652787300,3.08308,3243.6,3243.1,3.08344]
[1737652787497,3.08273,3243.9,3243.4,3.08314]
[1737652787800,3.08269,3244.0,3243.4,3.08314]
[1737652788292,3.08271,3243.9,3243.4,3.08314]
[1737652790502,0.608249,3244.1,3243.0,0.7791]
[1737652790710,3.08315,3243.5,3243.0,0.7791]
[1737652791000,3.0832,3243.4,3243.0,0.7791]
[1737652791161,3.08333,3243.3,3242.7,3.66281]
[1737652791361,0.7647,3243.7,3242.7,1.3767]
[1737652791596,3.08334,3243.3,3242.7,1.3767]
[1737652791902,3.08314,3243.5,3243.0,3.08354]
[1737652792563,3.08314,3243.5,3242.8,3.08368]
[1737652792785,3.08314,3243.5,3242.9,3.63362]
[1737652793198,3.08314,3243.5,3242.8,3.08368]
[1737652793403,3.84763,3243.7,3242.7,1.55216]
[1737652793404,3.08336,3243.3,3242.7,3.88153]
[1737652793802,3.08353,3243.1,3242.5,3.08398]
[1737652794103,3.08353,3243.1,3242.5,3.83979]
[1737652794303,3.08331,3243.3,3242.7,3.08382]
[1737652794881,3.08311,3243.5,3242.8,3.63368]
[1737652795178,3.08311,3243.5,3243.0,3.88845]
[1737652796224,3.08319,3243.4,3243.0,0.8049]
[1737652796575,3.08304,3243.6,3243.0,3.88846]
[1737652797707,3.84763,3243.7,3243.0,3.88846]
[1737652797913,6.93061,3243.7,3243.1,3.08344]
[1737652798307,3.84763,3243.7,3243.0,3.88846]
[1737652798617,3.083,3243.6,3243.0,3.88846]
[1737652799202,0.7766,3244.0,3243.0,1.557118]
[1737652799406,0.7766,3244.0,3243.5,3.08307]
[1737652799645,0.7766,3244.0,3243.3,3.0832]
[1737652799942,0.7766,3244.0,3243.4,3.08317]
[1737652799943,3.08275,3243.9,3243.4,3.08317]
[1737652800444,3.08275,3243.9,3243.0,0.8049]
[1737652800445,0.7665,3244.3,3243.9,3.08268]
[1737652800647,3.08214,3244.5,3243.8,0.8015]
[1737652800648,3.08224,3244.4,3243.8,0.8015]
[1737652800942,3.0829,3243.7,3243.3,0.8015]
[1737652801242,3.0829,3243.7,3243.0,3.88396]
[1737652801544,3.08322,3243.4,3243.0,0.8004]
[1737652801747,3.08299,3243.6,3243.0,3.88394]
[1737652802245,3.08324,3243.4,3243.0,0.8004]
[1737652802612,3.08304,3243.6,3243.0,3.88395]
[1737652803155,6.16612,3243.6,3243.0,0.8004]
[1737652803448,3.08315,3243.5,3243.0,0.8004]
[1737652803776,3.08363,3243.0,3242.7,0.7869]
[1737652803943,3.08363,3243.0,3242.4,3.87102]
[1737652804277,3.08358,3243.0,3242.4,4.44902]
[1737652804431,3.08358,3243.0,3242.4,7.53307]
[1737652804772,0.8035,3243.2,3242.6,3.08392]
[1737652804977,3.08298,3243.7,3243.1,3.08346]
[1737652805273,3.08272,3243.9,3243.3,3.08322]
[1737652805475,3.08261,3244.0,3243.4,3.08314]
[1737652805641,0.7665,3244.1,3243.6,3.08297]
[1737652805834,3.84848,3244.7,3243.9,0.55]
[1737652806067,3.08182,3244.9,3244.2,3.08235]
[1737652806294,3.08182,3244.9,3243.9,0.55]
[1737652806432,3.08182,3244.9,3244.2,3.63236]
[1737652806627,3.08224,3244.4,3243.9,3.0827]
[1737652806833,3.08224,3244.4,3243.8,0.8162]
[1737652806834,3.08234,3244.3,3243.8,0.8162]
[1737652807043,3.0825,3244.2,3243.6,0.616603]
[1737652807272,3.08254,3244.1,3243.6,3.63298]
[1737652807480,0.763,3244.3,3243.6,3.63298]
[1737652807776,3.84541,3244.3,3243.7,3.08282]
[1737652808832,3.08252,3244.1,3243.6,0.55]
[1737652809033,3.84541,3244.3,3243.7,3.08287]
[1737652809228,3.08244,3244.2,3243.7,0.439577]
[1737652809433,3.84541,3244.3,3243.7,3.522467]
[1737652809849,3.08249,3244.2,3243.7,0.439577]
[1737652810057,3.08249,3244.2,3243.6,3.63299]
[1737652810257,3.84541,3244.3,3243.6,3.63299]
[1737652810458,3.84541,3244.3,3243.7,3.08283]
[1737652810660,3.84541,3244.3,3243.8,3.08279]
[1737652810860,3.86029,3244.7,3243.2,0.7871]
[1737652811195,3.0818,3244.9,3243.2,0.7871]
[1737652811196,6.08175,3244.9,3243.8,0.7975]
[1737652811359,3.08235,3244.3,3243.8,0.7975]
[1737652811564,0.7507,3244.4,3243.8,0.7975]
[1737652811774,0.7507,3244.4,3243.8,3.88023]
[1737652811978,3.08234,3244.3,3243.8,0.7975]
[1737652812157,3.08234,3244.3,3243.8,3.88029]
[1737652812375,3.08215,3244.5,3243.9,3.08263]
[1737652812579,3.86639,3244.7,3244.1,3.08248]
[1737652812746,3.082,3244.7,3244.1,3.08248]
[1737652813303,3.08156,3245.2,3244.6,3.08198]
[1737652813448,3.0814,3245.3,3244.7,3.0819]
[1737652813649,3.775791,3245.3,3244.7,3.0819]
[1737652813895,3.0815,3245.2,3244.5,3.08212]
[1737652814052,3.08149,3245.2,3244.6,3.08203]
[1737652814488,3.86251,3245.4,3244.6,3.08203]
[1737652814790,3.08147,3245.2,3244.6,3.08203]
[1737652814956,3.08147,3245.2,3244.7,3.08194]
[1737652815296,3.86251,3245.4,3244.6,3.08203]
[1737652815453,3.08143,3245.3,3244.6,3.08197]
[1737652815854,0.7812,3245.4,3244.7,0.55]
[1737652816104,0.7536,3246.0,3245.2,3.08141]
[1737652816596,3.08071,3246.1,3245.2,3.08141]
[1737652816597,3.08071,3246.1,3245.3,0.7915]
[1737652816750,3.85745,3246.3,3245.5,3.08111]
[1737652816949,3.85745,3246.3,3245.6,3.08106]
[1737652816950,3.08052,3246.2,3245.6,3.08106]
[1737652817167,3.08063,3246.1,3245.5,3.08111]
[1737652818687,3.08063,3246.1,3245.4,3.08125]
[1737652818892,3.08063,3246.1,3245.3,3.87285]
[1737652819095,3.08052,3246.2,3245.5,3.08116]
[1737652819395,0.777,3246.3,3245.6,3.08109]
[1737652819755,3.85744,3246.3,3245.6,3.08109]
[1737652820095,3.08064,3246.1,3245.7,35.0]
[1737652820302,0.777,3246.3,3245.7,35.0]
[1737652820595,3.08052,3246.2,3245.7,35.0]
[1737652821095,3.0803,3246.5,3245.8,3.84109]
[1737652821497,0.8286,3246.6,3245.8,3.84109]
[1737652821795,0.8286,3246.6,3245.7,38.10202562]
[1737652821796,0.8286,3246.6,3245.7,35.0]
[1737652821967,3.0805,3246.3,3245.7,35.0]
[1737652822370,3.08067,3246.1,3245.7,35.0]
[1737652822591,3.08031,3246.5,3245.7,38.10202562]
[1737652822772,3.08058,3246.2,3245.7,35.0]
[1737652823402,3.08075,3246.0,3245.7,35.0]
[1737652823823,0.7784,3246.0,3245.2,0.8097]
[1737652823974,3.08065,3246.1,3245.3,3.08129]
[1737652824174,3.08065,3246.1,3245.4,38.08121]
[1737652824472,3.08065,3246.1,3245.4,35.0]
[1737652824886,3.08092,3245.8,3245.4,35.0]
[1737652825142,3.88203,3245.8,3245.4,35.0]
[1737652825807,0.8011,3245.8,3245.4,35.0]
[1737652825989,3.08074,3246.0,3245.4,35.0]
[1737652826335,3.08053,3246.2,3245.5,0.8086]
[1737652826736,3.08053,3246.2,3245.5,3.8897]
[1737652826908,3.08053,3246.2,3245.7,3.08094]
[1737652827089,3.87566,3246.4,3245.7,3.08094]
[1737652827435,3.07991,3246.9,3246.2,3.08046]
[1737652827436,3.07987,3246.9,3246.2,3.08046]
[1737652827644,3.07987,3246.9,3246.3,1.072546]
[1737652827797,3.07996,3246.8,3246.4,35.0]
[1737652828133,3.07986,3246.9,3246.4,35.0]
[1737652828439,3.86908,3247.0,3246.4,38.0803]
[1737652828732,3.07978,3247.0,3246.4,38.0803]
[1737652828942,3.07957,3247.2,3246.5,6.18225562]
[1737652829107,3.07957,3247.2,3246.6,3.08011]
[1737652829506,3.07957,3247.2,3246.7,35.0]
[1737652830738,0.7532,3247.3,3246.7,35.0]
[1737652831033,3.07969,3247.1,3246.7,35.0]
[1737652831917,3.07969,3247.1,3246.7,38.10202562]
[1737652832123,3.07932,3247.5,3246.7,38.10202562]
[1737652832336,3.07932,3247.5,3246.9,3.07984]
[1737652832511,3.0794,3247.4,3247.0,0.05695693]
[1737652832734,3.0794,3247.4,3246.8,4.40226]
[1737652832735,3.07953,3247.3,3246.8,0.7724]
[1737652832936,3.07953,3247.3,3246.9,0.05248088]
[1737652833412,3.07958,3247.2,3246.9,0.05248088]
[1737652833922,3.07944,3247.4,3246.9,0.05248088]
[1737652834261,0.8011,3247.6,3246.9,3.1545065]
[1737652834415,3.07914,3247.7,3247.0,0.55]
[1737652834623,3.07904,3247.8,3247.1,3.07958]
[1737652834821,3.07904,3247.8,3247.1,3.13170476]
[1737652835226,3.07916,3247.7,3247.1,0.05212476]
[1737652835559,3.07916,3247.7,3247.2,0.36818848]